bitfinex-derivatives/quotes_SOLF0:USTF0_20250307
["timestamp","ask_amount","ask_price","bid_price","bid_amount"]
[1741319447777,19.00555223,140.94,140.86,38.13969312]
[1741319447979,19.00555223,140.94,140.89,0.05267055]
[1741319447980,0.0524209,140.92,140.89,0.05267055]
[1741319449178,7.0966,140.91,140.89,0.05267055]
[1741319449587,0.0524209,140.92,140.89,0.05267055]
[1741319451183,0.0524209,140.92,140.89,28.45267055]
[1741319451584,0.0524209,140.92,140.91,7.0965]
[1741319452081,0.0524209,140.92,140.9,7.097]
[1741319452288,0.0524209,140.92,140.89,28.45267055]
[1741319452885,0.0524209,140.92,140.9,7.0966]
[1741319453683,0.0524209,140.92,140.89,0.05267055]
[1741319455589,0.0524209,140.92,140.89,7.15017055]
[1741319455982,0.0524209,140.92,140.89,0.05267055]
[1741319457893,0.0524209,140.92,140.9,7.097]
[1741319458093,0.0524209,140.92,140.89,30.5203051]
[1741319459295,0.0524209,140.92,140.91,7.0965]
[1741319459790,1.861,140.99,140.89,30.5203051]
[1741319459991,1.9923,141.02,140.92,30.46763455]
[1741319460190,1.9923,141.02,140.93,28.3]
[1741319460395,30.2923,141.02,140.93,28.3]
[1741319460896,0.05388526,140.99,140.96,0.04717718]
[1741319461296,0.05388526,140.99,140.97,28.28]
[1741319462298,0.05388526,140.99,140.98,7.093]
[1741319462898,0.05388526,140.99,140.97,35.3735]
[1741319463298,0.05388526,140.99,140.97,28.28]
[1741319463488,0.05388526,140.99,140.96,0.04717718]
[1741319463693,0.05388526,140.99,140.96,28.36717718]
[1741319464490,0.05388526,140.99,140.96,0.04717718]
[1741319464491,7.0934,140.98,140.96,0.04717718]
[1741319464801,0.05388526,140.99,140.96,0.04717718]
[1741319465195,7.0935,140.97,140.96,0.04717718]
[1741319466404,7.0954,140.94,140.9,28.32]
[1741319467205,7.0946,140.95,140.9,28.32]
[1741319467799,0.04849547,140.94,140.91,0.05068732]
[1741319468001,30.2158,141.0,140.9,28.32]
[1741319468302,30.2158,141.0,140.91,0.04510134]
[1741319468303,0.04651687,140.94,140.91,0.04510134]
[1741319468504,30.2158,141.0,140.9,28.32]
[1741319468805,0.04751391,140.94,140.91,0.04726181]
[1741319469004,30.2158,141.0,140.9,28.32]
[1741319469205,7.14727312,140.94,140.91,0.05280442]
[1741319469399,30.2158,141.0,140.9,28.32]
[1741319469602,0.05355157,140.94,140.91,0.05079884]
[1741319469899,1.9158,141.0,140.9,28.32]
[1741319470104,4.448e-05,140.94,140.91,30.51613468]
[1741319470293,3.8025,141.03,140.91,64.85876923]
[1741319470493,16.04319043,141.05,140.98,19.00471998]
[1741319470698,106.34895326,141.06,140.99,28.66]
[1741319471407,0.05169968,141.04,141.01,0.04849444]
[1741319472312,7.0909,141.03,141.01,0.04849444]
[1741319472810,7.0909,141.03,140.97,28.6]
[1741319472811,0.05169968,141.04,140.97,28.6]
[1741319473011,7.0915,141.02,140.97,28.6]
[1741319473510,30.6323,141.05,140.93,234.14]
[1741319473511,28.56,141.01,140.93,234.14]
[1741319473710,2.0237,141.0,140.93,234.14]
[1741319474013,0.05292198,140.98,140.96,0.05235611]
[1741319474831,0.05292198,140.98,140.96,28.57235611]
[1741319475109,0.05292198,140.98,140.97,7.0935]
[1741319476404,115.50491205,141.09,140.97,7.0935]
[1741319476405,122.59281205,141.09,141.02,7.0909]
[1741319476605,106.34193966,141.08,141.02,7.0909]
[1741319476810,106.34193966,141.08,141.0,28.46]
[1741319477321,77.86193966,141.08,141.0,28.46]
[1741319477502,77.86193966,141.08,141.04,7.0896]
[1741319477818,0.05076451,141.05,141.03,0.05398338]
[1741319478312,0.05076451,141.05,141.04,7.09]
[1741319478516,0.05076451,141.05,141.04,35.57]
[1741319478714,6.451e-05,141.05,141.04,35.57]
[1741319479413,6.451e-05,141.05,141.04,37.5103]
[1741319481409,6.451e-05,141.05,141.03,30.47068338]
[1741319481615,6.451e-05,141.05,141.03,35.62438338]
[1741319481810,6.451e-05,141.05,141.03,28.53398338]
[1741319482415,6.451e-05,141.05,141.04,7.09]
[1741319482616,6.451e-05,141.05,141.03,28.53398338]
[1741319482917,6.451e-05,141.05,141.04,7.09]
[1741319484105,34.1938,141.15,141.03,28.53398338]
[1741319484309,34.1938,141.15,141.08,7.0879]
[1741319484607,7.0851,141.14,141.08,7.0879]
[1741319485108,7.0851,141.14,141.09,7.0874]
[1741319485306,0.04734804,141.12,141.1,0.05442957]
[1741319486820,7.13344804,141.12,141.1,0.05442957]
[1741319487119,0.04734804,141.12,141.04,28.38]
[1741319487418,64.61809891,141.15,141.04,28.38]
[1741319487719,28.36,141.14,141.04,35.4699]
[1741319488017,28.36,141.14,141.04,28.38]
[1741319488320,0.05022577,141.1,141.08,0.0539971]
[1741319489008,7.0879,141.09,141.08,0.0539971]
[1741319489206,28.36,141.09,141.0,62.81799891]
[1741319490220,7.0897,141.05,141.03,0.04987788]
[1741319492924,7.13779682,141.06,141.03,0.04987788]
[1741319493623,0.04869682,141.06,141.03,0.04987788]
[1741319494120,0.04869682,141.06,141.03,7.13997788]
[1741319494319,0.04869682,141.06,141.03,28.34987788]
[1741319495615,0.04869682,141.06,141.05,7.0895]
[1741319495823,0.04869682,141.06,141.03,28.34987788]
[1741319496320,0.04869682,141.06,141.04,7.0896]
[1741319496920,0.04869682,141.06,141.05,7.0895]
[1741319497121,0.04869682,141.06,141.03,28.34987788]
[1741319497524,9.682e-05,141.06,141.03,58.77417679]
[1741319497725,30.2239,141.14,141.03,58.77417679]
[1741319497929,30.2239,141.14,141.03,58.72429891]
[1741319498130,7.0868,141.11,141.06,7.0888]
[1741319498627,30.2239,141.14,141.03,58.72429891]
[1741319498820,0.04789751,141.1,141.07,0.04942219]
[1741319499532,0.04789751,141.1,141.08,7.0875]
[1741319499727,0.04789751,141.1,141.07,0.04942219]
[1741319500129,7.088,141.09,141.07,0.04942219]
[1741319500329,0.04789751,141.1,141.07,0.04942219]
[1741319500822,7.0875,141.09,141.07,0.04942219]
[1741319501024,0.04789751,141.1,141.07,0.04942219]
[1741319501324,7.0891,141.06,141.01,7.0914]
[1741319501519,28.24,141.1,141.0,62.67799891]
[1741319502132,28.24,141.1,141.02,7.0909]
[1741319502433,0.04729685,141.07,141.05,0.04951007]
[1741319502635,7.13619685,141.07,141.05,0.04951007]
[1741319503032,0.04729685,141.07,141.05,0.04951007]
[1741319503235,7.089,141.06,141.05,0.04951007]
[1741319503723,33.675,141.06,140.97,30.42429891]
[1741319503928,30.135,141.06,140.97,28.26]
[1741319504634,30.135,141.06,140.97,58.68429891]
[1741319504843,0.05306229,141.03,141.0,0.04471366]
[1741319505541,0.05306229,141.03,141.0,7.13631366]
[1741319506044,7.14396229,141.03,141.0,0.04471366]
[1741319506243,0.05306229,141.03,141.0,0.04471366]
[1741319506633,7.0914,141.02,141.0,0.04471366]
[1741319506835,0.05306229,141.03,141.0,0.04471366]
[1741319507246,7.0914,141.02,141.0,0.04471366]
[1741319507447,0.05306229,141.03,141.0,0.04471366]
[1741319508549,7.14366229,141.03,141.0,0.04471366]
[1741319508944,0.05306229,141.03,141.0,0.04471366]
[1741319509144,7.091,141.02,141.0,0.04471366]
[1741319509650,0.05306229,141.03,141.0,0.04471366]
[1741319510443,7.0915,141.01,141.0,0.04471366]
[1741319510742,0.05306229,141.03,141.0,0.04471366]
[1741319510942,7.0911,141.02,141.0,0.04471366]
[1741319511849,0.05306229,141.03,141.0,0.04471366]
[1741319512347,0.05306229,141.03,141.02,7.091]
[1741319512553,0.05306229,141.03,141.0,0.04471366]
[1741319514454,0.05306229,141.03,141.0,7.13631366]
[1741319514757,0.05306229,141.03,141.0,0.04471366]
[1741319516559,7.0915,141.01,141.0,0.04471366]
[1741319516751,0.05306229,141.03,141.0,0.04471366]
[1741319518260,7.14406229,141.03,141.0,0.04471366]
[1741319519057,0.05306229,141.03,141.0,0.04471366]
[1741319520564,7.0915,141.01,141.0,0.04471366]
[1741319521664,7.0938,140.97,140.92,2.0163]
[1741319521865,7.0938,140.97,140.92,30.0963]
[1741319522661,7.0938,140.97,140.92,56.21343803]
[1741319522863,0.04700294,140.96,140.94,0.02410319]
[1741319523066,7.0945,140.95,140.94,0.02410319]
[1741319523564,7.14110294,140.96,140.94,0.02410319]
[1741319525165,0.04700294,140.96,140.94,0.02410319]
[1741319525765,7.0945,140.95,140.94,0.02410319]
[1741319526565,0.04700294,140.96,140.94,0.02410319]
[1741319528464,0.04700294,140.96,140.95,7.0945]
[1741319529359,0.04700294,140.96,140.94,0.02410319]
[1741319529962,7.14120294,140.96,140.94,0.02410319]
[1741319530966,7.0945,140.95,140.94,0.02410319]
[1741319531265,0.04700294,140.96,140.94,0.02410319]
[1741319532572,7.0945,140.95,140.94,0.02410319]
[1741319532866,35.1945,140.95,140.94,0.02410319]
[1741319533060,28.1,140.95,140.89,7.0972]
[1741319533262,7.0955,140.94,140.89,7.0972]
[1741319533466,28.1,140.95,140.86,33.8673]
[1741319534069,28.1,140.98,140.86,33.8673]
[1741319534269,0.04790833,140.92,140.88,30.44450274]
[1741319534772,7.0936,140.97,140.88,30.44450274]
[1741319535162,28.1,140.99,140.88,30.44450274]
[1741319535765,0.05357925,140.95,140.92,0.04790833]
[1741319536761,28.15357925,140.95,140.92,0.04790833]
[1741319537765,0.05357925,140.95,140.92,0.04790833]
[1741319538267,0.05357925,140.95,140.92,7.14390833]
[1741319538666,0.05357925,140.95,140.93,7.0953]
[1741319538971,0.05357925,140.95,140.92,0.04790833]
[1741319539176,0.05357925,140.95,140.93,7.0951]
[1741319539569,0.05357925,140.95,140.92,0.04790833]
[1741319540467,0.05357925,140.95,140.94,7.095]
[1741319540667,0.05357925,140.95,140.92,0.04790833]
[1741319541676,2.00797925,140.95,140.92,0.04790833]
[1741319541871,7.0955,140.93,140.92,0.04790833]
[1741319543274,7.0974,140.9,140.87,28.1]
[1741319543479,7.0974,140.9,140.85,35.1992]
[1741319543672,28.1,140.92,140.85,28.1]
[1741319543978,28.1,140.92,140.88,7.0978]
[1741319544377,0.04827358,140.91,140.88,7.0978]
[1741319544766,0.04827358,140.91,140.89,7.0975]
[1741319545172,0.04827358,140.91,140.85,28.1]
[1741319545372,0.04827358,140.91,140.87,7.0981]
[1741319546276,0.04827358,140.91,140.85,28.1]
[1741319546477,0.04827358,140.91,140.88,7.0978]
[1741319546979,0.04827358,140.91,140.88,19.03880595]
[1741319547179,0.04827358,140.91,140.89,28.1]
[1741319548588,0.04827358,140.91,140.89,35.1974]
[1741319549082,0.04827358,140.91,140.88,26.13650595]
[1741319549386,0.04827358,140.91,140.88,19.03880595]
[1741319550286,0.04827358,140.91,140.88,26.13670595]
[1741319550686,0.04827358,140.91,140.88,19.03880595]
[1741319550879,0.04827358,140.91,140.9,7.097]
[1741319551280,0.04827358,140.91,140.88,19.03880595]
[1741319551689,0.04827358,140.91,140.86,53.09130595]
[1741319552182,0.04827358,140.91,140.87,7.0984]
[1741319552583,0.04827358,140.91,140.86,53.09130595]
[1741319552789,0.04827358,140.91,140.87,7.0984]
[1741319553588,0.04827358,140.91,140.88,7.098]
[1741319553890,0.04827358,140.91,140.86,53.09130595]
[1741319554192,0.04827358,140.91,140.89,7.0972]
[1741319554484,0.04827358,140.91,140.88,19.03880595]
[1741319555086,0.04827358,140.91,140.9,7.097]
[1741319556090,0.04827358,140.91,140.89,7.0974]
[1741319556789,0.04827358,140.91,140.9,7.097]
[1741319557484,0.04827358,140.91,140.9,54.23580595]
[1741319558488,10.9681,140.99,140.95,7.0945]
[1741319559286,105.96193966,141.01,140.92,19.03880595]
[1741319559486,7.0922,141.0,140.96,7.0939]
[1741319559784,0.05349774,140.98,140.96,7.0939]
[1741319561685,0.05349774,140.98,140.95,7.14140588]
[1741319563296,0.05349774,140.98,140.95,0.04700588]
[1741319563593,0.05349774,140.98,140.96,7.0936]
[1741319563795,0.05349774,140.98,140.95,0.04700588]
[1741319563991,7.14689774,140.98,140.95,0.04700588]
[1741319564893,0.05349774,140.98,140.95,0.04700588]
[1741319565692,0.05349774,140.98,140.96,7.0937]
[1741319565997,0.05349774,140.98,140.95,0.04700588]
[1741319566388,0.05349774,140.98,140.97,7.0935]
[1741319566998,0.05349774,140.98,140.95,0.04700588]
[1741319567197,0.05349774,140.98,140.96,7.0939]
[1741319567697,0.05349774,140.98,140.95,7.14140588]
[1741319568303,0.05349774,140.98,140.96,7.0936]
[1741319568690,0.05349774,140.98,140.95,0.04700588]
[1741319570199,7.14669774,140.98,140.95,0.04700588]
[1741319570905,0.05349774,140.98,140.95,7.14110588]
[1741319571098,0.05349774,140.98,140.95,0.04700588]
[1741319573099,7.14669774,140.98,140.95,0.04700588]
[1741319573499,0.05349774,140.98,140.95,0.04700588]
[1741319574201,7.094,140.96,140.95,0.04700588]
[1741319576507,0.05349774,140.98,140.95,0.04700588]
[1741319577199,7.0935,140.97,140.95,0.04700588]
[1741319578210,0.05349774,140.98,140.95,0.04700588]
[1741319578809,7.0935,140.97,140.95,0.04700588]
[1741319579006,0.05349774,140.98,140.95,0.04700588]
[1741319579511,7.094,140.96,140.95,0.04700588]
[1741319580418,7.094,140.96,140.89,7.0975]
[1741319580708,28.08,140.95,140.85,3.9712]
[1741319581116,28.08,140.95,140.86,19.03880595]
[1741319581408,28.08,140.95,140.88,19.03880595]
[1741319581606,0.05099057,140.92,140.91,7.0962]
[1741319582418,0.05099057,140.92,140.9,7.0969]
[1741319582605,0.05099057,140.92,140.89,1.918]
[1741319583618,0.05099057,140.92,140.88,35.1779]
[1741319583810,0.05099057,140.92,140.88,28.08]
[1741319584116,7.14709057,140.92,140.88,28.08]
[1741319584301,0.05099057,140.92,140.88,47.11880595]
[1741319584501,0.05099057,140.92,140.9,19.03880595]
[1741319584914,0.05099057,140.92,140.88,47.11880595]
[1741319585216,0.05099057,140.92,140.88,28.08]
[1741319585913,0.05099057,140.92,140.86,19.03880595]
[1741319586409,7.0969,140.91,140.86,26.13770595]
[1741319586606,7.0969,140.91,140.86,19.03880595]
[1741319587007,7.0972,140.9,140.86,7.099]
[1741319587911,7.0972,140.9,140.85,35.1795]
[1741319588317,0.0488687,140.89,140.85,35.1795]
[1741319588613,0.0488687,140.89,140.85,7.0995]
[1741319589516,0.0488687,140.89,140.84,281.17880595]
[1741319591318,0.0488687,140.89,140.87,7.0985]
[1741319591818,0.0488687,140.89,140.84,281.17880595]
[1741319592012,0.0488687,140.89,140.88,7.098]
[1741319592507,0.0488687,140.89,140.86,19.03880595]
[1741319592909,0.0488687,140.89,140.85,19.03880595]
[1741319593108,0.0488687,140.89,140.84,281.17880595]
[1741319593620,0.0488687,140.89,140.84,253.09880595]
[1741319593821,7.1467687,140.89,140.85,7.0995]
[1741319594022,0.0488687,140.89,140.84,234.06]
[1741319594320,7.1467687,140.89,140.84,7.0999]
[1741319594818,0.0488687,140.89,140.84,7.0999]
[1741319595018,7.0982,140.88,140.84,7.0999]
[1741319595622,0.0488687,140.89,140.83,28.08]
[1741319596122,7.1465687,140.89,140.85,7.0993]
[1741319596421,7.1465687,140.89,140.83,28.08]
[1741319596632,7.0981,140.88,140.84,7.0999]
[1741319597124,0.0488687,140.89,140.84,7.0999]
[1741319597319,7.1465687,140.89,140.84,7.0999]
[1741319597714,7.1465687,140.89,140.85,7.0995]
[1741319597915,7.1465687,140.89,140.82,47.11880595]
[1741319598423,7.1465687,140.89,140.85,7.0995]
[1741319598622,0.0488687,140.89,140.85,7.0995]
[1741319599227,7.1464687,140.89,140.85,7.0995]
[1741319602528,7.1464687,140.89,140.85,19.28940032]
[1741319602731,0.0488687,140.89,140.87,12.18990032]
[1741319603029,28.33250483,140.96,140.87,12.18990032]
[1741319603228,7.0949,140.95,140.9,7.0968]
[1741319603426,0.05052443,140.93,140.9,7.0968]
[1741319603626,0.05052443,140.93,140.9,19.28670032]
[1741319603820,0.05052443,140.93,140.9,12.18990032]
[1741319604129,0.05052443,140.93,140.92,7.096]
[1741319604530,0.05052443,140.93,140.9,28.08]
[1741319605233,0.05052443,140.93,140.91,7.0965]
[1741319606031,0.05052443,140.93,140.9,28.08]
[1741319606231,0.05052443,140.93,140.92,7.096]
[1741319609831,5.7546,141.0,140.95,7.0944]
[1741319610839,28.08,141.01,140.96,7.0939]
[1741319611033,0.04746154,140.99,140.96,7.14059091]
[1741319611338,0.04746154,140.99,140.96,0.04669091]
[1741319612037,0.04746154,140.99,140.98,7.093]
[1741319612239,77.86193966,141.04,140.98,47.10911952]
[1741319612632,77.86193966,141.04,141.0,7.0916]
[1741319613238,77.86193966,141.04,140.98,47.10911952]
[1741319613443,0.05311363,141.03,141.01,0.05175325]
[1741319614531,7.091,141.02,141.01,0.05175325]
[1741319614931,0.05311363,141.03,141.01,0.05175325]
[1741319615634,7.091,141.02,141.01,0.05175325]
[1741319617835,3.54,141.02,140.92,19.02911952]
[1741319618034,7.0941,140.96,140.92,28.06]
[1741319618239,28.06,141.0,140.92,28.06]
[1741319618440,7.0951,140.94,140.92,28.06]
[1741319618638,19.02911952,140.99,140.88,24.93641952]
[1741319618839,19.02911952,140.99,140.88,60.09431952]
[1741319619043,0.04632111,140.95,140.92,0.04750042]
[1741319619237,0.04632111,140.95,140.92,47.13661994]
[1741319620143,0.04632111,140.95,140.93,7.0951]
[1741319620341,0.04632111,140.95,140.92,47.13661994]
[1741319621447,0.04632111,140.95,140.93,7.0952]
[1741319621652,0.04632111,140.95,140.92,47.13661994]
[1741319622348,0.04632111,140.95,140.94,7.095]
[1741319622554,0.04632111,140.95,140.94,26.12411952]
[1741319623242,28.06,141.04,140.94,19.02911952]
[1741319623545,28.06,141.04,140.96,19.02911952]
[1741319623752,28.06,141.04,140.96,47.08911952]
[1741319624254,7.091,141.03,140.98,7.093]
[1741319624546,0.04599099,141.01,140.99,0.05052064]
[1741319625651,7.092,141.0,140.99,0.05052064]
[1741319625855,0.04599099,141.01,140.99,0.05052064]
[1741319626152,7.13749099,141.01,140.99,0.05052064]
[1741319626558,0.04599099,141.01,140.99,0.05052064]
[1741319626763,7.13769099,141.01,140.99,0.05052064]
[1741319628965,0.04599099,141.01,140.99,0.05052064]
[1741319631459,7.13789099,141.01,140.99,0.05052064]
[1741319631762,0.04599099,141.01,140.99,0.05052064]
[1741319631954,7.13759099,141.01,140.99,0.05052064]
[1741319633566,0.04599099,141.01,140.99,0.05052064]
[1741319633755,0.04599099,141.01,141.0,19.26005207]
[1741319636067,0.04599099,141.01,141.0,47.32005207]
[1741319636565,3.968,141.09,141.0,40.22805207]
[1741319636767,3.968,141.09,141.05,12.16805207]
[1741319637667,0.04509968,141.08,141.06,0.05129347]
[1741319639256,0.04509968,141.08,141.07,12.16805207]
[1741319640570,0.04509968,141.08,141.06,0.05129347]
[1741319641073,7.0885,141.07,141.06,0.05129347]
[1741319641467,19.03422758,141.08,140.99,18.9891279]
[1741319641769,2.0139,141.07,140.99,18.9891279]
[1741319642567,0.05090551,141.04,141.02,0.05338315]
[1741319643367,7.14100551,141.04,141.02,0.05338315]
[1741319643575,0.05090551,141.04,141.02,0.05338315]
[1741319644366,7.0905,141.03,141.02,0.05338315]
[1741319648171,7.0905,141.03,141.02,8.315e-05]
[1741319654870,1.96470551,141.04,141.02,8.315e-05]
[1741319655076,9.05480551,141.04,141.02,8.315e-05]
[1741319655478,0.05090551,141.04,141.02,8.315e-05]
[1741319657479,7.0905,141.03,141.02,8.315e-05]
[1741319659282,7.14110551,141.04,141.02,8.315e-05]
[1741319660586,0.05090551,141.04,141.02,8.315e-05]
[1741319663178,7.0905,141.03,141.02,8.315e-05]
[1741319666178,35.18100551,141.04,141.02,8.315e-05]
[1741319666783,7.0905,141.03,141.02,8.315e-05]
[1741319667180,0.05090551,141.04,141.02,8.315e-05]
[1741319667785,7.14090551,141.04,141.02,8.315e-05]
[1741319668286,0.05090551,141.04,141.02,8.315e-05]
[1741319669586,7.0905,141.03,141.02,8.315e-05]
[1741319672387,0.05090551,141.04,141.02,8.315e-05]
[1741319673079,7.14090551,141.04,141.02,8.315e-05]
[1741319673478,0.05090551,141.04,141.02,8.315e-05]
[1741319674385,7.14120551,141.04,141.02,8.315e-05]
[1741319676388,0.05090551,141.04,141.02,8.315e-05]
[1741319676984,0.05090551,141.04,141.02,7.09098315]
[1741319677291,110.4766186,141.09,141.02,18.98921105]
[1741319677479,93.90228097,141.09,141.04,18.9891279]
[1741319677684,77.86193966,141.08,141.04,18.9891279]
[1741319678291,7.0886,141.07,141.04,18.9891279]
[1741319678492,7.14174362,141.07,141.05,12.21086931]
[1741319680892,0.05314362,141.07,141.05,12.21086931]
[1741319682391,7.14164362,141.07,141.05,12.21086931]
[1741319683093,0.05314362,141.07,141.05,12.21086931]
[1741319690200,7.14204362,141.07,141.05,12.21086931]
[1741319690402,0.05314362,141.07,141.05,12.21086931]
[1741319690602,7.089,141.06,141.05,12.21086931]
[1741319691301,7.14184362,141.07,141.05,12.21086931]
[1741319692297,7.089,141.06,141.05,0.0544854]
[1741319698001,0.05314362,141.07,141.05,0.0544854]
[1741319698802,7.089,141.06,141.05,0.0544854]
[1741319702514,0.05314362,141.07,141.05,0.0544854]
[1741319702515,7.14184362,141.07,141.05,0.0544854]
[1741319703017,0.05314362,141.07,141.05,0.0544854]
[1741319703213,7.089,141.06,141.05,0.0544854]
[1741319705719,7.14184362,141.07,141.05,0.0544854]
[1741319706710,0.05314362,141.07,141.05,0.0544854]
[1741319706906,0.05314362,141.07,141.05,12.21086931]
[1741319708921,0.05314362,141.07,141.05,0.0544854]
[1741319710422,7.089,141.06,141.05,0.0544854]
[1741319710617,0.05314362,141.07,141.05,12.21086931]
[1741319712426,0.05314362,141.07,141.06,7.089]
[1741319712624,0.05314362,141.07,141.05,12.21086931]
[1741319713525,0.05314362,141.07,141.05,19.30016931]
[1741319715024,0.05314362,141.07,141.05,0.0544854]
[1741319718827,0.05314362,141.07,141.05,12.21086931]
[1741319720528,0.05314362,141.07,141.05,19.30016931]
[1741319721226,0.05314362,141.07,141.05,0.0544854]
[1741319724933,0.05314362,141.07,141.05,12.21086931]
[1741319730131,7.14174362,141.07,141.05,12.21086931]
[1741319731333,7.14174362,141.07,141.05,0.0544854]
[1741319733031,7.089,141.06,141.05,0.0544854]
[1741319733339,12.15638391,141.06,141.0,12.15638391]
[1741319733636,14.10478391,141.06,141.0,12.15638391]
[1741319734034,1.9484,141.06,141.0,19.24838391]
[1741319734242,1.9484,141.06,141.0,12.15638391]
[1741319734538,1.9484,141.06,141.02,12.18802307]
[1741319734735,7.0894,141.06,141.02,12.18802307]
[1741319734932,0.05137007,141.05,141.02,12.18802307]
[1741319736142,7.0905,141.03,141.02,0.03163916]
[1741319736333,12.20775398,141.05,140.98,12.15638391]
[1741319736534,12.15638391,141.05,140.98,12.15638391]
[1741319737034,7.0905,141.03,140.98,12.15638391]
[1741319737343,27.96,141.03,140.98,12.15638391]
[1741319737541,7.14046012,141.02,140.98,12.15638391]
[1741319739437,7.0916,141.01,140.98,12.15638391]
[1741319741241,0.04906012,141.02,140.94,1.9479]
[1741319741436,40.11638391,141.03,140.95,12.15638391]
[1741319741636,0.0482625,140.99,140.95,12.15638391]
[1741319742038,0.0482625,140.99,140.97,12.15638391]
[1741319742742,0.0482625,140.99,140.97,40.11638391]
[1741319743539,0.0482625,140.99,140.98,7.093]
[1741319745145,93.99075772,141.09,141.03,7.0904]
[1741319745339,93.99075772,141.09,141.06,12.15638391]
[1741319745838,77.86193966,141.09,141.06,12.15638391]
[1741319746242,77.91025515,141.09,141.06,12.20134842]
[1741319746847,0.04831549,141.09,141.06,12.20134842]
[1741319751251,0.04831549,141.09,141.08,12.15638391]
[1741319758265,7.088,141.08,141.06,12.20134842]
[1741319758560,0.04831549,141.09,141.06,0.04496451]
[1741319758755,7.0885,141.07,141.06,0.04496451]
[1741319759960,27.96831549,141.09,141.06,0.04496451]
[1741319761050,35.05601549,141.09,141.06,0.04496451]
[1741319761250,0.04831549,141.09,141.06,12.20134842]
[1741319761651,7.13581549,141.09,141.06,12.20134842]
[1741319762759,0.04831549,141.09,141.06,12.20134842]
[1741319763157,7.0885,141.07,141.06,12.20134842]
[1741319763462,0.04831549,141.09,141.06,0.04496451]
[1741319763761,7.0884,141.08,141.06,0.04496451]
[1741319765362,7.0885,141.07,141.06,0.04496451]
[1741319766457,12.15638391,141.07,141.0,12.15638391]
[1741319766662,14.08338391,141.07,141.0,12.15638391]
[1741319766956,12.15638391,141.05,141.0,12.15638391]
[1741319767466,7.0911,141.02,141.0,12.15638391]
[1741319769161,0.04587173,141.04,140.98,12.15638391]
[1741319769368,7.0915,141.01,140.98,12.15638391]
[1741319769955,7.0928,140.99,140.96,12.15638391]
[1741319770361,7.14653773,140.99,140.96,12.15638391]
[1741319770563,0.05373773,140.99,140.96,12.15638391]
[1741319770754,0.05373773,140.99,140.98,12.15638391]
[1741319771967,0.05373773,140.99,140.96,12.15638391]
[1741319773372,0.05373773,140.99,140.98,12.15638391]
[1741319773866,0.05373773,140.99,140.96,12.15638391]
[1741319774666,0.05373773,140.99,140.96,19.25038391]
[1741319775458,0.05373773,140.99,140.96,12.15638391]
[1741319776369,0.05373773,140.99,140.96,19.25028391]
[1741319777065,0.05373773,140.99,140.98,12.15638391]
[1741319777274,31.7747,141.06,140.98,12.15638391]
[1741319777463,31.7747,141.06,141.01,12.15638391]
[1741319778065,29.847,141.07,141.01,12.15638391]
[1741319778461,0.05168767,141.05,141.03,0.05308655]
[1741319780764,7.09,141.04,141.03,0.05308655]
[1741319781074,19.24638391,141.04,141.03,0.05308655]
[1741319782473,7.09,141.04,141.03,0.05308655]
[1741319796585,7.09,141.04,141.03,8.655e-05]
[1741319796880,9.0382,141.04,141.03,8.655e-05]
[1741319797083,11.0228,141.04,141.03,8.655e-05]
[1741319797383,14.5628,141.04,141.03,8.655e-05]
[1741319798385,7.0932,140.98,140.93,233.96]
[1741319798784,7.0932,140.98,140.92,46.91307728]
[1741319799383,7.0932,140.98,140.93,7.0955]
[1741319799686,0.05046049,140.96,140.93,7.0955]
[1741319800778,0.05046049,140.96,140.92,19.01307728]
[1741319801385,0.05046049,140.96,140.93,7.0952]
[1741319802388,0.05046049,140.96,140.92,19.01307728]
[1741319802588,0.05046049,140.96,140.94,19.27064667]
[1741319803088,0.05046049,140.96,140.94,12.17564667]
[1741319804780,0.05046049,140.96,140.94,19.27054667]
[1741319805791,0.05046049,140.96,140.95,7.0945]
[1741319807986,0.05046049,140.96,140.94,19.27054667]
[1741319808893,0.05046049,140.96,140.94,12.17564667]
[1741319809493,0.05046049,140.96,140.94,19.27054667]
[1741319810294,0.05046049,140.96,140.94,12.17564667]
[1741319811099,0.05046049,140.96,140.92,19.27164667]
[1741319811687,0.05046049,140.96,140.93,7.0954]
[1741319814098,0.05046049,140.96,140.92,12.17564667]
[1741319814306,0.05046049,140.96,140.9,12.17564667]
[1741319815604,7.0946,140.95,140.9,19.27244667]
[1741319816193,27.93046049,140.96,140.92,12.17564667]
[1741319817600,27.93046049,140.96,140.92,19.27124667]
[1741319819004,35.02446049,140.96,140.92,19.27124667]
[1741319819203,35.02446049,140.96,140.92,12.17564667]